[Event "44th Chess Olympiad Women 2022"]
[Site "Chennai"]
[Date "2022.08.09"]
[Round "11.27"]
[White "Chirivi C, Jenny Astrid"]
[Black "Abdi, Zineb Dina"]
[Result "1-0"]
[ECO "D36"]
[WhiteElo "2157"]
[BlackElo "1899"]
[Annotator "ChessBase"]
[PlyCount "69"]
[EventDate "2022.07.29"]
[EventType "team-tourn"]
[EventCountry "IND"]
[SourceTitle "playchess.com"]
[Source "ChessBase"]
[SourceQuality "1"]
[WhiteTeam "Colombia"]
[BlackTeam "Algeria"]
[WhiteTeamCountry "COL"]
[BlackTeamCountry "ALG"]
[TimeControl "40/5400+30:1800+30"]

1. d4 {[%emt 0:00:06]} Nf6 {[%emt 0:00:23]} 2. c4 {[%emt 0:00:06]} e6 {[%emt 0:00:04]} 3. Nc3 {[%emt 0:00:07]} d5 {[%emt 0:00:13]} 4. cxd5 {[%emt 0:00:20]} exd5 {[%emt 0:00:05]} 5. Bg5 {[%emt 0:00:13]} Be7 {[%emt 0:00:29]} 6. e3 {[%emt 0:00:20]} c6 {[%emt 0:00:22]} 7. Qc2 {[%emt 0:00:23]} Nbd7 {[%emt 0:00:35]} 8. Bd3 {[%emt 0:00:36]} h6 {[%emt 0:00:39]} 9. Bf4 {[%emt 0:04:15]} O-O {[%emt 0:02:11]} 10. h3 {[%emt 0:00:24]} Re8 {[%emt 0:02:05]} 11. Nf3 {[%emt 0:01:52]} Nf8 {[%emt 0:03:22]} 12. O-O {[%emt 0:00:56]} Bd6 {[%emt 0:02:27]} 13. Ne5 {[%emt 0:03:57]} Ne6 {[%emt 0:06:40]} 14. Bh2 {[%emt 0:02:42]} Ng5 {[%emt 0:05:24]} 15. f4 {[%emt 0:17:20]} Nge4 {[%emt 0:03:22]} 16. Bxe4 {[%emt 0:04:20]} Nxe4 {[%emt 0:00:58]} 17. Nxe4 {[%emt 0:01:50]} dxe4 {[%emt 0:00:19]} 18. f5 {[%emt 0:03:38]} Qg5 {[%emt 0:26:09]} 19. Bf4 {[%emt 0:31:47]} Qh5 {[%emt 0:13:12]} 20. Qb3 {[%emt 0:04:08]} Bxe5 {[%emt 0:05:53]} 21. Bxe5 {[%emt 0:00:24]} Bxf5 {[%emt 0:06:43]} 22. Qxb7 {[%emt 0:01:47]} Qg6 {[%emt 0:02:13]} 23. Kh2 {[%emt 0:00:31]} Rec8 {[%emt 0:03:52]} 24. Rac1 {[%emt 0:01:03]} Qe6 {[%emt 0:01:27]} 25. Rc5 {[%emt 0:01:43]} Qd7 {[%emt 0:01:15]} 26. Qb4 {[%emt 0:03:49]} Be6 {[%emt 0:00:26]} 27. Qe1 {[%emt 0:03:20]} f6 {[%emt 0:03:43]} 28. Bxf6 {[%emt 0:04:33]} gxf6 {[%emt 0:02:25]} 29. Rxf6 {[%emt 0:00:05]} Kg7 {[%emt 0:01:31]} 30. Qh4 {[%emt 0:01:16]} Rh8 {[%emt 0:00:18]} 31. Rh5 {[%emt 0:00:55]} Bf7 {[%emt 0:03:55]} 32. Rhxh6 {[%emt 0:01:15]} Rag8 {[%emt 0:00:19]} 33. Qf4 {[%emt 0:03:56]} Qe7 {[%emt 0:02:58]} 34. Rxc6 {[%emt 0:00:43]} Rh7 {[%emt 0:00:45]} 35. Rxh7+ {[%emt 0:00:09]} 1-0

[Event "44th Chess Olympiad Women 2022"]
[Site "Chennai"]
[Date "2022.08.09"]
[Round "11.27"]
[White "Nassr, Lina"]
[Black "Castrillon Gomez, Melissa"]
[Result "1/2-1/2"]
[ECO "A48"]
[WhiteElo "2011"]
[BlackElo "2230"]
[Annotator "RC"]
[PlyCount "136"]
[EventDate "2022.07.29"]
[EventType "team-tourn"]
[EventCountry "IND"]
[SourceTitle "playchess.com"]
[Source "ChessBase"]
[SourceQuality "1"]
[WhiteTeam "Algeria"]
[BlackTeam "Colombia"]
[WhiteTeamCountry "ALG"]
[BlackTeamCountry "COL"]
[TimeControl "40/5400+30:1800+30"]

1. d4 {[%emt 0:00:09]} Nf6 {[%emt 0:00:06]} 2. Nf3 {[%emt 0:00:16]} g6 {[%emt 0:00:04]} 3. e3 {[%emt 0:00:17]} Bg7 {[%emt 0:00:07]} 4. Be2 {[%emt 0:00:18]} c5 {[%emt 0:01:18]} 5. O-O {[%emt 0:01:01]} O-O {[%emt 0:00:17]} 6. dxc5 {[%emt 0:01:13]} Qa5 {[%emt 0:00:52]} 7. a3 {[%emt 0:01:05]} Qxc5 {[%emt 0:00:28]} 8. b4 {[%emt 0:01:07]} Qc7 {[%emt 0:01:26]} 9. Bb2 {[%emt 0:01:47]} d5 {[%emt 0:01:38]} 10. Nc3 {[%emt 0:14:01]} e6 {[%emt 0:13:59]} 11. Nb5 {[%emt 0:05:10]} Qd8 {[%emt 0:01:00]} 12. c4 {[%emt 0:02:06]} a6 {[%emt 0:02:04]} 13. Nbd4 {[%emt 0:01:47]} Nbd7 {[%emt 0:06:51]} 14. Nd2 {[%emt 0:04:01]} Ne4 {[%emt 0:12:32]} 15. cxd5 {[%emt 0:16:43]} exd5 {[%emt 0:00:57]} 16. Nxe4 {[%emt 0:02:11]} dxe4 {[%emt 0:00:37]} 17. Qb3 {[%emt 0:00:46]} Qg5 {[%emt 0:06:55]} 18. g3 {[%emt 0:12:35]} Ne5 {[%emt 0:03:03]} 19. h4 {[%emt 0:03:39]} Qe7 {[%emt 0:05:07]} 20. Qc2 {[%emt 0:05:40]} f5 {[%emt 0:10:16]} 21. Rac1 {[%emt 0:04:55]} g5 {[%emt 0:04:21]} 22. Qc7 {[%emt 0:07:24]} Qf6 {[%emt 0:10:05]} 23. hxg5 {[%emt 0:00:57]} Qxg5 {[%emt 0:00:19]} 24. Ne6 {[%emt 0:05:29]} Bxe6 {[%emt 0:01:10]} 25. Bxe5 {[%emt 0:00:15]} Rf7 {[%emt 0:02:17]} 26. Bf4 {[%emt 0:00:26]} Rxc7 {[%emt 0:06:10]} 27. Bxg5 {[%emt 0:00:06]} Rac8 {[%emt 0:00:04]} 28. Rxc7 {[%emt 0:01:10]} Rxc7 {[%emt 0:00:00]} 29. Rd1 {[%emt 0:04:03]} Rd7 {[%emt 0:01:11]} 30. Rxd7 {[%emt 0:03:50]} Bxd7 {[%emt 0:00:01]} 31. Bc4+ {[%emt 0:00:53]} Kf8 {[%emt 0:00:38]} 32. Bd5 {[%emt 0:00:20]} b5 {[%emt 0:00:48]} 33. Bb7 {[%emt 0:00:30]} Bb2 {[%emt 0:00:29]} 34. Bd8 {[%emt 0:00:33]} Bxa3 {[%emt 0:03:03]} 35. Ba5 {[%emt 0:00:04]} Ke7 {[%emt 0:00:30]} 36. Bxa6 {[%emt 0:00:20]} Kd6 {[%emt 0:03:57]} 37. Bb7 {[%emt 0:00:24]} Be6 {[%emt 0:00:25]} 38. Kg2 {[%emt 0:00:49]} Bb2 {[%emt 0:00:31]} 39. Kf1 {[%emt 0:00:59]} Bc3 {[%emt 0:00:32]} 40. Kg2 {[%emt 0:00:27]} Bd2 {[%emt 0:01:24]} 41. Kg1 {[%emt 0:06:35]} Kd7 {[%emt 0:00:11]} 42. Kg2 {[%emt 0:01:28]} Bc4 {[%emt 0:00:34]} 43. Kg1 {[%emt 0:02:01]} Bc3 {[%emt 0:01:04]} 44. Kg2 {[%emt 0:15:01]} Be5 {[%emt 0:00:20]} 45. f3 {[%emt 0:02:23]} exf3+ {[%emt 0:03:06]} 46. Kxf3 {[%emt 0:00:38]} Bd6 {[%emt 0:00:05]} 47. e4 {[%emt 0:02:15]} Bd3 {[%emt 0:00:57]} 48. exf5 {[%emt 0:00:45]} Bxf5 {[%emt 0:00:03]} 49. Bd5 {[%emt 0:02:25]} h5 {[%emt 0:01:25]} 50. Bf7 {[%emt 0:00:40]} Bg4+ {[%emt 0:00:04]} 51. Kf2 {[%emt 0:00:12]} Ke7 {[%emt 0:01:06]} 52. Bd5 {[%emt 0:00:11]} Bd7 {[%emt 0:00:22]} 53. Bf3 {[%emt 0:00:29]} Be8 {[%emt 0:00:04]} 54. Kg2 {[%emt 0:01:16]} Ke6 {[%emt 0:01:10]} 55. Be2 {[%emt 0:01:11]} Ke5 {[%emt 0:01:08]} 56. Kh3 {[%emt 0:00:30]} Be7 {[%emt 0:00:16]} 57. Kg2 {[%emt 0:00:32]} Kd4 {[%emt 0:00:44]} 58. Kh3 {[%emt 0:00:34]} Ke3 {[%emt 0:01:17]} 59. Bd1 {[%emt 0:00:29]} Bd7+ {[%emt 0:00:43]} 60. Kg2 {[%emt 0:00:07]} Bg4 {[%emt 0:00:47]} 61. Bc2 {[%emt 0:00:34]} Kd2 {[%emt 0:01:30]} 62. Bg6 {[%emt 0:00:27]} Kc3 {[%emt 0:00:08]} 63. Be8 {[%emt 0:00:48]} Bxb4 {[%emt 0:00:24]} 64. Bb6 {[%emt 0:00:22]} Be2 {[%emt 0:01:12]} 65. Kf2 {[%emt 0:00:37]} Kd2 {[%emt 0:00:35]} 66. Bf7 {[%emt 0:00:13]} Bd1 {[%emt 0:04:33]} 67. Be8 {[%emt 0:00:19]} Be2 {[%emt 0:00:26]} 68. Bf7 {[%emt 0:00:04]} Bd1 {[%emt 0:00:03]} 1/2-1/2

[Event "44th Chess Olympiad Women 2022"]
[Site "Chennai"]
[Date "2022.08.09"]
[Round "11.27"]
[White "Pachon, Adriana"]
[Black "Hamza, Amira"]
[Result "1-0"]
[ECO "C02"]
[WhiteElo "2007"]
[BlackElo "1848"]
[Annotator "TA"]
[PlyCount "87"]
[EventDate "2022.07.29"]
[EventType "team-tourn"]
[EventCountry "IND"]
[SourceTitle "playchess.com"]
[Source "ChessBase"]
[SourceQuality "1"]
[WhiteTeam "Colombia"]
[BlackTeam "Algeria"]
[WhiteTeamCountry "COL"]
[BlackTeamCountry "ALG"]
[TimeControl "40/5400+30:1800+30"]

{[%evp 17,87,11,13,16,90,81,87,87,102,85,109,55,101,99,106,76,104,100,109,101,101,105,129,104,98,74,94,71,122,69,147,107,285,128,312,277,258,95,103,84,78,55,37,2,19,0,111,110,102,-375,-420,-413,-410,-406,-392,-603,-593,-572,-537,-29992,-29977,-29992,-29981,-29981,-29982,-29982,-29983,-29982,29994,29995,29996,29996]} 1. e4 {[%emt 0:00:08]} e6 {[%emt 0:00:20]} 2. d4 {[%emt 0:00:28]} d5 {[%emt 0:00:06]} 3. e5 {[%emt 0:00:56]} c5 {[%emt 0:00:07]} 4. c3 {[%emt 0:00:05]} Nc6 {[%emt 0:00:15]} 5. Nf3 {[%emt 0:00:05]} Bd7 {[%emt 0:00:18]} 6. a3 {[%emt 0:03:00]} Qb6 {[%emt 0:04:54]} 7. b4 {[%emt 0:00:26]} cxd4 {[%emt 0:00:23]} 8. cxd4 {[%emt 0:00:06]} Rc8 {[%emt 0:00:27]} 9. Bb2 {[%emt 0:02:50]} Nge7 {[%emt 0:02:09]} 10. Nc3 {[%emt 0:02:09] C02: French: Advance Variation.} Nf5 {[%emt 0:01:52]} (10... Na5 $1 $11) 11. Na4 $16 {[%emt 0:01:14]} Qc7 {[%emt 0:01:50][%cal Oc6b4]} 12. Rc1 {[%emt 0:00:56] White is better.} Qb8 {[%emt 0:03:17] [#]} 13. g4 $146 {[%emt 0:04:45]} ({Predecessor:} 13. Bd3 Be7 14. Nc5 Rd8 15. Qd2 Nh4 16. b5 Nxf3+ 17. gxf3 Nxe5 18. dxe5 Bc8 19. Bb1 {0-1 (51) Blaszkiewicz,M (1818)-Adamczewski,M (2053) Katowice 2020}) 13... Nh6 {[%emt 0:02:47]} 14. h3 {[%emt 0:00:11]} ({White should play} 14. Rg1 $16) 14... Be7 {[%emt 0:02:29]} (14... f6 $1 $14) 15. Nc5 {[%emt 0:01:16]} Bxc5 {[%emt 0:00:51]} 16. Rxc5 {[%emt 0:00:21]} (16. bxc5 f6 $14) 16... O-O {[%emt 0:08:47]} 17. Bd3 {[%emt 0:02:09]} b6 {[%emt 0:08:21]} 18. Rc3 {[%emt 0:04:08]} Ne7 {[%emt 0:08:17]} 19. Rxc8 {[%emt 0:08:10]} Qxc8 {[%emt 0:02:23]} 20. O-O {[%emt 0:01:28]} f5 {[%emt 0:10:58]} 21. exf6 {[%emt 0:03:08]} gxf6 {[%emt 0:00:11]} 22. Qd2 {[%emt 0:00:41]} Kg7 {[%emt 0:03:18]} ({Black should try} 22... Nf7) 23. Bc1 {[%emt 0:07:39] A strong pair of Bishops.} (23. Rc1 $16 Qb8 24. g5) 23... Nhg8 {[%emt 0:02:12]} (23... Nf7 $14) 24. g5 {[%emt 0:03:57]} f5 $2 {[%emt 0:05:12]} (24... Be8 $16) 25. Ne5 {[%emt 0:02:12]} (25. Qe2 $18 {Threatens to win with Qe5+.} Qc7 26. h4) 25... Ba4 $2 {[%emt 0:00:41]} (25... Ng6 $16) 26. b5 {[%emt 0:02:20]} Ng6 {[%emt 0:03:29]} 27. Nc6 {[%emt 0:02:23]} (27. Nxg6 $18 {has better winning chances.} hxg6 28. Qb2) 27... a6 {[%emt 0:01:00]} 28. Qe2 {[%emt 0:08:08][%cal Oc1f4] And now Bf4! would win.} Bxb5 {[%emt 0:01:59]} 29. Bxb5 {[%emt 0:00:28]} axb5 {[%emt 0:00:08]} 30. Qxb5 {[%emt 0:00:09]} Qc7 {[%emt 0:01:19]} 31. Re1 {[%emt 0:02:48]} Nh4 {[%emt 0:06:02]} (31... Nf4 32. Ne5 Ng6 33. Nxg6 hxg6 34. Bd2 $18) (31... f4 $11 {remains equal.}) 32. Rxe6 {[%emt 0:07:51]} Qd7 {[%emt 0:01:00]} 33. Rh6 $2 {[%emt 0:05:14][%mdl 8192] 0x0.0002db319326dp-1022s more active pieces.} Nxh6 $19 {[%emt 0:01:00]} 34. gxh6+ {[%emt 0:00:03]} Kh8 {[%emt 0:00:30] Hoping for ...f4.} 35. Bf4 {[%emt 0:02:55]} Ng6 {[%emt 0:03:50]} ({Don't blunder} 35... Rf6 $2 36. Na7 Qe6 37. Kf1 $19) 36. Bg5 {[%emt 0:03:29]} (36. Be5+ $142 Nxe5 37. dxe5) 36... f4 {[%emt 0:03:19]} 37. Qxb6 {[%emt 0:08:58]} Qf5 {[%emt 0:03:30]} ({Not} 37... Qxh3 38. Qc7 Qg4+ 39. Kf1 Qd1+ 40. Kg2 Qg4+ 41. Kf1 Qd1+ 42. Kg2 Qg4+ 43. Kf1 $11) 38. h4 {[%emt 0:02:13] [#]} Nxh4 $1 {[%emt 0:01:38][%mdl 576] Decoy} 39. Bxh4 {[%emt 0:00:05]} (39. Ne5 Qxg5+) 39... Qg4+ {[%emt 0:00:15]} 40. Kf1 {[%emt 0:00:17]} Qd1+ {[%emt 0:00:45]} 41. Kg2 {[%emt 0:30:03]} Rg8+ {[%emt 0:30:15]} 42. Bg3 {[%emt 0:00:19]} f3+ $4 {[%emt 0:00:16][%mdl 8192] [#]} (42... fxg3 {avoids the disaster.} 43. Qd8 Rxd8 44. Nxd8 gxf2 45. Kxf2 Qxd4+ 46. Kf3 Qf6+ 47. Ke3 Qxd8 48. Kd4 Qb6+ 49. Ke5 Qe3+ 50. Kxd5 Qxh6 51. Ke4 Qg6+ 52. Ke5 h5 53. Kd4 h4 54. a4 h3 55. a5 h2 56. a6 h1=Q 57. a7 Qhe4+ 58. Kc3 Qg3+ 59. Kb2 Qeg2+ 60. Kc1 Qe1#) 43. Kh2 {[%emt 0:00:12]} Rf8 {[%emt 0:06:40]} 44. Ne7 {[%emt 0:01:06] What a fight!  Weighted Error Value: White=0.76/Black=0.46} 1-0

[Event "44th Chess Olympiad Women 2022"]
[Site "Chennai"]
[Date "2022.08.09"]
[Round "11.27"]
[White "Nassr, Rania"]
[Black "Argote Heredia, Valentina"]
[Result "0-1"]
[ECO "A14"]
[WhiteElo "1737"]
[BlackElo "2205"]
[Annotator "RC"]
[PlyCount "120"]
[EventDate "2022.07.29"]
[EventType "team-tourn"]
[EventCountry "IND"]
[SourceTitle "playchess.com"]
[Source "ChessBase"]
[SourceQuality "1"]
[WhiteTeam "Algeria"]
[BlackTeam "Colombia"]
[WhiteTeamCountry "ALG"]
[BlackTeamCountry "COL"]
[TimeControl "40/5400+30:1800+30"]

1. d4 {[%emt 0:00:07]} Nf6 {[%emt 0:00:12]} 2. Nf3 {[%emt 0:00:19]} e6 {[%emt 0:00:47]} 3. g3 {[%emt 0:00:25]} d5 {[%emt 0:00:26]} 4. Bg2 {[%emt 0:00:28]} Be7 {[%emt 0:04:07]} 5. O-O {[%emt 0:00:47]} O-O {[%emt 0:00:16]} 6. c4 {[%emt 0:01:20]} b6 {[%emt 0:03:37]} 7. b3 {[%emt 0:02:44]} Bb7 {[%emt 0:02:51]} 8. Nbd2 {[%emt 0:09:42]} c5 {[%emt 0:07:21]} 9. e3 {[%emt 0:00:00]} Nc6 {[%emt 0:02:43]} 10. Bb2 {[%emt 0:00:00]} Rc8 {[%emt 0:01:39]} 11. a3 {[%emt 0:00:00]} cxd4 {[%emt 0:02:34]} 12. cxd5 {[%emt 0:02:53]} Nxd5 {[%emt 0:00:29]} 13. exd4 {[%emt 0:04:04]} Rc7 {[%emt 0:07:53]} 14. Qe2 {[%emt 0:07:43]} Qc8 {[%emt 0:03:43]} 15. Rfd1 {[%emt 0:07:33]} Ba6 {[%emt 0:00:20]} 16. Qe1 {[%emt 0:02:56]} Na5 {[%emt 0:02:59]} 17. Rdc1 {[%emt 0:05:22]} Nc6 {[%emt 0:03:27]} 18. Ne5 {[%emt 0:03:36]} Nxe5 {[%emt 0:03:33]} 19. dxe5 {[%emt 0:00:47]} Rd8 {[%emt 0:05:24]} 20. Ne4 {[%emt 0:02:50]} Qd7 {[%emt 0:08:56]} 21. Rd1 {[%emt 0:18:24]} Rc2 {[%emt 0:04:28]} 22. Rd2 {[%emt 0:00:35]} Rxd2 {[%emt 0:01:32]} 23. Qxd2 {[%emt 0:00:29]} Qb5 {[%emt 0:04:02]} 24. Bf1 {[%emt 0:03:33]} Qxb3 {[%emt 0:00:04]} 25. Bxa6 {[%emt 0:10:30]} Nc7 {[%emt 0:00:09]} 26. Qc3 {[%emt 0:04:33]} Qxc3 {[%emt 0:00:50]} 27. Bxc3 {[%emt 0:00:01]} Nxa6 {[%emt 0:00:07]} 28. Bb4 {[%emt 0:02:18]} Bf8 {[%emt 0:12:57]} 29. Bxf8 {[%emt 0:01:18]} Kxf8 {[%emt 0:00:13]} 30. Nd6 {[%emt 0:00:29]} Nc5 {[%emt 0:00:36]} 31. a4 {[%emt 0:01:11]} f6 {[%emt 0:02:06]} 32. f4 {[%emt 0:00:34]} fxe5 {[%emt 0:01:32]} 33. fxe5 {[%emt 0:00:04]} Nd3 {[%emt 0:02:22]} 34. Nb5 {[%emt 0:03:20]} Rd7 {[%emt 0:00:49]} 35. a5 {[%emt 0:02:00]} Nxe5 {[%emt 0:00:32]} 36. axb6 {[%emt 0:01:09]} axb6 {[%emt 0:00:07]} 37. Rb1 {[%emt 0:00:48]} Ke7 {[%emt 0:00:48]} 38. Nc3 {[%emt 0:00:21]} Rd6 {[%emt 0:07:13]} 39. Na4 {[%emt 0:00:38]} Nd7 {[%emt 0:00:58]} 40. Rb4 {[%emt 0:00:51]} e5 {[%emt 0:00:24]} 41. Kg2 {[%emt 0:31:30]} Rd4 {[%emt 0:31:41]} 42. Nxb6 {[%emt 0:01:03]} Rxb4 {[%emt 0:00:00]} 43. Nd5+ {[%emt 0:00:00]} Kd6 {[%emt 0:00:00]} 44. Nxb4 {[%emt 0:00:00]} Kc5 {[%emt 0:00:00]} 45. Nc2 {[%emt 0:00:00]} Kc4 {[%emt 0:00:00]} 46. Kf3 {[%emt 0:00:00]} Kc3 {[%emt 0:00:00]} 47. Ne1 {[%emt 0:00:00]} Kd2 {[%emt 0:00:00]} 48. Ng2 {[%emt 0:00:00]} Nf6 {[%emt 0:00:00]} 49. g4 {[%emt 0:00:00]} g5 {[%emt 0:00:00]} 50. Ne3 {[%emt 0:00:00]} e4+ {[%emt 0:00:00]} 51. Kf2 {[%emt 0:00:00]} Kd3 {[%emt 0:00:00]} 52. h3 {[%emt 0:00:00]} h6 {[%emt 0:00:00]} 53. Ng2 {[%emt 0:00:00]} Nd5 {[%emt 0:00:00]} 54. h4 {[%emt 0:00:00]} Nf4 {[%emt 0:00:00]} 55. Ne1+ {[%emt 0:00:00]} Kd2 {[%emt 0:00:00]} 56. hxg5 {[%emt 0:00:00]} hxg5 {[%emt 0:00:00]} 57. Kf1 {[%emt 0:00:00]} Kd1 {[%emt 0:00:00]} 58. Nf3 {[%emt 0:00:00]} exf3 {[%emt 0:00:00]} 59. Kf2 {[%emt 0:00:00]} Kd2 {[%emt 0:00:00]} 60. Kxf3 {[%emt 0:00:00]} Kd3 {[%emt 0:00:00]} 0-1

[Event "44th Chess Olympiad Women 2022"]
[Site "Chennai"]
[Date "2022.08.09"]
[Round "11.28"]
[White "Alboredo, Julia"]
[Black "Heredia Serrano, Carla"]
[Result "1/2-1/2"]
[ECO "B12"]
[WhiteElo "2264"]
[BlackElo "2090"]
[Annotator "RC"]
[PlyCount "127"]
[EventDate "2022.07.29"]
[EventType "team-tourn"]
[EventCountry "IND"]
[SourceTitle "playchess.com"]
[Source "ChessBase"]
[SourceQuality "1"]
[WhiteTeam "Brazil"]
[BlackTeam "Ecuador"]
[WhiteTeamCountry "BRA"]
[BlackTeamCountry "ECU"]
[TimeControl "40/5400+30:1800+30"]

1. e4 {[%emt 0:00:03]} c6 {[%emt 0:03:40]} 2. d4 {[%emt 0:00:10]} d5 {[%emt 0:00:09]} 3. e5 {[%emt 0:00:09]} Bf5 {[%emt 0:00:25]} 4. h4 {[%emt 0:00:12]} a6 {[%emt 0:00:11]} 5. Nc3 {[%emt 0:08:28]} h5 {[%emt 0:00:28]} 6. Bd3 {[%emt 0:00:39]} Bxd3 {[%emt 0:00:14]} 7. Qxd3 {[%emt 0:00:09]} e6 {[%emt 0:00:27]} 8. Bg5 {[%emt 0:00:26]} Qc7 {[%emt 0:01:03]} 9. Nf3 {[%emt 0:03:25]} c5 {[%emt 0:00:20]} 10. dxc5 {[%emt 0:02:32]} Bxc5 {[%emt 0:01:56]} 11. O-O {[%emt 0:00:22]} Nc6 {[%emt 0:04:50]} 12. a3 {[%emt 0:11:22]} Rc8 {[%emt 0:14:02]} 13. Rfe1 {[%emt 0:07:39]} Nge7 {[%emt 0:05:33]} 14. Bf4 {[%emt 0:27:47]} Qb6 {[%emt 0:15:59]} 15. Bg3 {[%emt 0:07:51]} Nf5 {[%emt 0:15:24]} 16. Na4 {[%emt 0:03:38]} Qa7 {[%emt 0:00:13]} 17. Nxc5 {[%emt 0:00:20]} Qxc5 {[%emt 0:00:02]} 18. Bf4 {[%emt 0:02:59]} Ncd4 {[%emt 0:03:54]} 19. Nxd4 {[%emt 0:04:59]} Qxd4 {[%emt 0:03:40]} 20. Qxd4 {[%emt 0:05:53]} Nxd4 {[%emt 0:00:13]} 21. Rac1 {[%emt 0:00:17]} Rc4 {[%emt 0:09:57]} 22. b3 {[%emt 0:07:13]} Rc6 {[%emt 0:02:45]} 23. c4 {[%emt 0:03:54]} Nxb3 {[%emt 0:03:04]} 24. cxd5 {[%emt 0:00:05]} Rxc1 {[%emt 0:00:09]} 25. Bxc1 {[%emt 0:00:09]} exd5 {[%emt 0:00:19]} 26. Be3 {[%emt 0:00:18]} d4 {[%emt 0:05:42]} 27. Rb1 {[%emt 0:00:21]} dxe3 {[%emt 0:00:18]} 28. Rxb3 {[%emt 0:00:06]} exf2+ {[%emt 0:02:00]} 29. Kxf2 {[%emt 0:00:01]} b5 {[%emt 0:01:35]} 30. Rg3 {[%emt 0:02:02]} O-O {[%emt 0:06:02]} 31. Ke3 {[%emt 0:00:36]} Rc8 {[%emt 0:00:12]} 32. Kd2 {[%emt 0:01:46]} Rc5 {[%emt 0:00:52]} 33. Re3 {[%emt 0:00:27]} Kf8 {[%emt 0:00:12]} 34. e6 {[%emt 0:00:23]} f6 {[%emt 0:01:01]} 35. e7+ {[%emt 0:00:06]} Ke8 {[%emt 0:00:08]} 36. Re6 {[%emt 0:00:27]} Rc7 {[%emt 0:00:56]} 37. Rxa6 {[%emt 0:00:24]} Kxe7 {[%emt 0:00:23]} 38. Rb6 {[%emt 0:00:51]} Ra7 {[%emt 0:00:28]} 39. Rxb5 {[%emt 0:00:17]} Rxa3 {[%emt 0:00:03]} 40. Rxh5 {[%emt 0:00:58]} Ra2+ {[%emt 0:00:08]} 41. Ke3 {[%emt 0:30:24]} Rxg2 {[%emt 0:30:08]} 42. Kf3 {[%emt 0:00:00]} Rg1 {[%emt 0:00:00]} 43. Ra5 {[%emt 0:00:00]} Kf7 {[%emt 0:00:00]} 44. Kf4 {[%emt 0:00:00]} Kg6 {[%emt 0:00:00]} 45. Rb5 {[%emt 0:00:00]} Rc1 {[%emt 0:00:00]} 46. Ra5 {[%emt 0:00:00]} Rc3 {[%emt 0:00:00]} 47. Rb5 {[%emt 0:00:00]} Kh6 {[%emt 0:00:00]} 48. Rb8 {[%emt 0:00:00]} g6 {[%emt 0:00:00]} 49. Rh8+ {[%emt 0:00:00]} Kg7 {[%emt 0:00:00]} 50. Ra8 {[%emt 0:00:00]} Rb3 {[%emt 0:00:00]} 51. Ra5 {[%emt 0:00:00]} Kh6 {[%emt 0:00:00]} 52. Ra8 {[%emt 0:01:41]} f5 {[%emt 0:00:00]} 53. Ke5 {[%emt 0:00:12]} Kh5 {[%emt 0:00:00]} 54. Rh8+ {[%emt 0:02:16]} Kg4 {[%emt 0:00:00]} 55. Rh6 {[%emt 0:01:33]} Re3+ {[%emt 0:01:36]} 56. Kf6 {[%emt 0:00:17]} f4 {[%emt 0:01:34]} 57. Rxg6+ {[%emt 0:00:03]} Kh3 {[%emt 0:05:45]} 58. Rg1 {[%emt 0:01:13]} f3 {[%emt 0:00:58]} 59. h5 {[%emt 0:00:40]} f2 {[%emt 0:00:25]} 60. Rf1 {[%emt 0:00:07]} Kg2 {[%emt 0:00:17]} 61. Rxf2+ {[%emt 0:00:10]} Kxf2 {[%emt 0:00:03]} 62. h6 {[%emt 0:00:11]} Rh3 {[%emt 0:00:21]} 63. Kg7 {[%emt 0:00:10]} Rg3+ {[%emt 0:00:08]} 64. Kf7 {[%emt 0:00:09]} 1/2-1/2

[Event "44th Chess Olympiad Women 2022"]
[Site "Chennai"]
[Date "2022.08.09"]
[Round "11.28"]
[White "Terao, Juliana Sayumi"]
[Black "Penafiel Mendoza, Josselyne"]
[Result "1-0"]
[ECO "B22"]
[WhiteElo "2223"]
[BlackElo "1804"]
[Annotator "RC"]
[PlyCount "59"]
[EventDate "2022.07.29"]
[EventType "team-tourn"]
[EventCountry "IND"]
[SourceTitle "playchess.com"]
[Source "ChessBase"]
[SourceQuality "1"]
[WhiteTeam "Brazil"]
[BlackTeam "Ecuador"]
[WhiteTeamCountry "BRA"]
[BlackTeamCountry "ECU"]
[TimeControl "40/5400+30:1800+30"]

1. e4 {[%emt 0:00:03]} c5 {[%emt 0:00:08]} 2. c3 {[%emt 0:00:06]} Nf6 {[%emt 0:00:11]} 3. e5 {[%emt 0:00:05]} Nd5 {[%emt 0:00:14]} 4. Nf3 {[%emt 0:00:08]} e6 {[%emt 0:03:52]} 5. d4 {[%emt 0:03:49]} cxd4 {[%emt 0:00:07]} 6. cxd4 {[%emt 0:00:09]} d6 {[%emt 0:00:42]} 7. Bc4 {[%emt 0:01:03]} Nb6 {[%emt 0:05:49]} 8. Bd3 {[%emt 0:00:49]} Nc6 {[%emt 0:01:03]} 9. a3 {[%emt 0:06:12]} dxe5 {[%emt 0:06:01]} 10. dxe5 {[%emt 0:00:12]} Qc7 {[%emt 0:02:04]} 11. Bf4 {[%emt 0:07:05]} Nd5 {[%emt 0:00:53]} 12. Bg3 {[%emt 0:00:58]} b6 {[%emt 0:00:45]} 13. O-O {[%emt 0:00:25]} Bb7 {[%emt 0:00:20]} 14. Qe2 {[%emt 0:02:47]} g6 {[%emt 0:02:45]} 15. Nbd2 {[%emt 0:00:58]} Bg7 {[%emt 0:01:00]} 16. Rac1 {[%emt 0:02:56]} O-O {[%emt 0:01:49]} 17. h4 {[%emt 0:02:09]} Nde7 {[%emt 0:06:13]} 18. Bh2 {[%emt 0:07:21]} Qd7 {[%emt 0:03:08]} 19. Ne4 {[%emt 0:03:21]} Qd5 {[%emt 0:11:43]} 20. Rfd1 {[%emt 0:05:00]} Nxe5 {[%emt 0:06:59]} 21. Bxe5 {[%emt 0:00:33]} Bxe5 {[%emt 0:00:52]} 22. Bb1 {[%emt 0:00:37]} Qa5 {[%emt 0:06:19]} 23. b4 {[%emt 0:00:48]} Qxa3 {[%emt 0:10:45]} 24. Nxe5 {[%emt 0:00:11]} Qxb4 {[%emt 0:00:21]} 25. Nf6+ {[%emt 0:04:13]} Kg7 {[%emt 0:03:45]} 26. Ned7 {[%emt 0:01:49]} Rfd8 {[%emt 0:22:21]} 27. Qe5 {[%emt 0:00:55]} Qxh4 {[%emt 0:00:17]} 28. Rd4 {[%emt 0:03:12]} Nc6 {[%emt 0:02:39]} 29. Ne8+ {[%emt 0:00:11]} Kg8 {[%emt 0:00:45]} 30. Qg7# {[%emt 0:00:00]} 1-0